Cogmind - Beta 15 @@@ ROGUE MODE // 2025.09.29 @ 23:11:41 Player: Figgis Result: Destroyed by Y-45 Defender with Heavy Assault Rifle Performance ------------- Evolutions (1) 500 Regions Visited (4) 800 Robots Destroyed (99) 495 Value Destroyed (2388) 2388 Prototype IDs (6) 120 Alien Tech Used (0) 0 Bonus (496) 496 TOTAL SCORE: 4799 Bonus ------- High Alert Combat Kills 54 Follower Combat Kills 442 Cogmind --------- Core Integrity 0/400 Matter 292/300 Energy 280/280 System Corruption 1% Temperature Cool (3) Movement Treading (160) Location -9/Storage Parts ------- > --- POWER (1) -------- Cooled Ion Engine > --- PROPULSION (2) --- Improved Treads Improved Treads > --- UTILITY (4) ------ Large Storage Unit Hardened Light Armor Plating Hacking Suite Hacking Suite > --- WEAPON (2) ------- Autogun Autogun > --- INVENTORY (15) --- Heavy Ion Engine Heavy Ion Engine Improved Treads Improved Treads High-capacity Matter Pod (200) High-capacity Matter Pod (200) Medium Armor Plating Hardlight Generator Shield Generator Heavy Assault Rifle Heavy Assault Rifle Improved Assault Rifle Improved Assault Rifle Rocket Launcher Hammer Peak State ------------ > --- POWER ------------ Heavy Ion Engine > --- PROPULSION ------- Improved Treads Improved Treads > --- UTILITY ---------- Large Storage Unit Hardened Light Armor Plating Hacking Suite Hacking Suite > --- WEAPON ----------- Autogun Improved Assault Rifle > --- INVENTORY -------- Heavy Ion Engine Heavy Ion Engine Improved Treads Improved Treads High-capacity Matter Pod High-capacity Matter Pod Medium Armor Plating Hardlight Generator Shield Generator Heavy Assault Rifle Heavy Assault Rifle Autogun Improved Assault Rifle Rocket Launcher Hammer [Rating: 24] Favorites ----------- Power Light Ion Engine Engine Light Ion Engine Propulsion Light Treads Treads Light Treads Utility Hacking Suite Device Improved Terrain Scanner Storage Large Storage Unit Hackware Hacking Suite Protection Medium Armor Plating Weapon Autogun Ballistic Gun Autogun Ballistic Cannon Light Cannon Launcher Rocket Launcher Impact Weapon Hammer Build | -11 -10 -10 -9 -9 ------- Run | Yrd Mat Min Mat Sto Slots Evolved 2 | . . . 2 . Power . | . . . . . Propulsion . | . . . . . Utility 2 | . . . 2 . Weapon . | . . . . . Parts Attached 33 | 6 5 2 13 7 Power 6 | 1 . 2 1 2 Engine 6 | 1 . 2 1 2 Core . | . . . . . Reactor . | . . . . . Propulsion 5 | 2 . . 3 . Treads 5 | 2 . . 3 . Leg . | . . . . . Wheel . | . . . . . Hover . | . . . . . Flight . | . . . . . Utility 8 | 1 3 . 3 1 Device 2 | . 1 . 1 . Storage 2 | 1 1 . . . Processor . | . . . . . Hackware 2 | . 1 . 1 . Protection 2 | . . . 1 1 Artifact . | . . . . . Weapon 14 | 2 2 . 6 4 Energy Gun . | . . . . . Energy Cannon . | . . . . . Ballistic Gun 11 | 2 2 . 4 3 Ballistic Cannon 1 | . . . 1 . Launcher 1 | . . . 1 . Special Weapon . | . . . . . Impact Weapon 1 | . . . . 1 Slashing Weapon . | . . . . . Piercing Weapon . | . . . . . Special Melee Weapon . | . . . . . Unidentified Prototypes 2 | . . . . 2 Parts Lost 8 | . . 1 7 . Power 2 | . . 1 1 . Propulsion 1 | . . . 1 . Utility 2 | . . . 2 . Weapon 3 | . . . 3 . Highest Loss Streak 3 | . . 1 3 . To Critical Strikes . | . . . . . Average Backups 12 | 2 8 12 14 14 Power 1 | 1 1 . . 1 Propulsion 2 | . . . 3 2 Utility 3 | . 2 5 4 5 Weapon 5 | 1 4 6 5 5 Tool/Special . | . . . . . Unused Backups 20 | . . . 5 15 Power 3 | . . . . 3 Propulsion 7 | . . . 3 4 Utility 6 | . . . 1 5 Weapon 4 | . . . 1 3 Tool/Special . | . . . . . Average Slot Usage (%) 97 | . 99 98 95 99 Engine 11 | . 14 12 10 11 Treads 23 | . 28 28 21 21 Device 2 | . 1 . 4 . Storage 12 | . 14 14 11 11 Hackware 18 | . 12 14 21 22 Protection 4 | . . . 4 11 Ballistic Gun 22 | . 28 28 21 16 Impact Weapon 1 | . . . . 4 Peak Build Rating 24 | 6 12 12 21 24 Average Rating 16 | 5 11 11 18 22 On Entrance 10 | . 6 12 12 21 Naked Turns . | . . . . . Heaviest Build 41 | 12 30 31 40 41 Greatest Support 46 | 40 40 40 46 46 Greatest Overweight (x) 1 | . . . 1 . Average Overweight (x) . | . . . . . Largest Inventory Capacity 15 | 8 15 15 15 15 Average Capacity 14 | 7 14 15 15 15 Most Carried 15 | 5 12 13 15 15 Average Carried 12 | 3 8 12 14 14 Final Capacity 15 | 8 15 15 15 15 Final Carried 15 | 4 12 12 15 15 Class Distribution -------------------- 43% | Hacker-Mutant 38% | Mutant 9% | Commander-Mutant 8% | Scavenger-Mutant Dominant Class ---------------- Mutant | -10/Materials Mutant | -10/Mines Hacker-Mutant | -9/Materials Commander-Mutant | -9/Storage Resources | -11 -10 -10 -9 -9 ----------- Run | Yrd Mat Min Mat Sto Matter Collected 3248 | 368 499 338 1467 576 Remotely . | . . . . . Salvage Created 3379 | 188 554 239 1788 610 Parts 225 | 12 35 19 117 42 Haulers Intercepted 5 | . 1 . 3 1 Recyclers Shooed 1 | . . . . 1 Parts Field Recycled . | . . . . . Retrieved Matter . | . . . . . Parts Self-Destructed . | . . . . . Prevented . | . . . . . Kills | -11 -10 -10 -9 -9 ------- Run | Yrd Mat Min Mat Sto Combat Hostiles Destroyed 65 | . 14 6 35 10 Guns 61 | . 14 6 31 10 AOE 4 | . . . 4 . Classes Destroyed 12 | 2 5 1 4 . Worker 5 | . . . 2 3 Builder 2 | . . 1 1 . Tunneler 5 | 4 . 1 . . Hauler 5 | . 1 . 3 1 Recycler 3 | 1 1 . 1 . Mechanic 1 | . . . 1 . Operator 5 | . 1 . 2 2 Watcher 8 | . 3 . 5 . Swarmer 18 | . 9 2 7 . Grunt 30 | . 5 4 17 4 Brawler 2 | . . . 1 1 Sentry 15 | . . . 10 5 Best Kill Streak 5 | 2 4 2 5 4 Combat Bots Only 5 | . 4 2 5 3 Max Kills in Single Turn 3 | 1 2 2 3 1 Gunslinging 1 | . 1 . . . Exploded 3 | . . . 3 . Melee . | . . . . . Uniques/NPCs Destroyed . | . . . . . Combat | -11 -10 -10 -9 -9 -------- Run | Yrd Mat Min Mat Sto Hostile Shots Fired 292 | . 45 25 175 47 Missed 79 | . 14 4 49 12 Hits 213 | . 31 21 126 35 Melee 2 | . . . 2 . Projectile 211 | . 31 21 124 35 Critical Strikes 3 | . . . 2 1 Damage Taken 2610 | . 272 224 1620 494 Core 430 | . 17 7 320 86 Absorbed by Shields . | . . . . . Regen/Repaired (Parts) 595 | . . . 438 157 Core Remaining (%) 95 | 100 . 90 . . Volleys Fired 282 | 18 59 22 136 47 Largest 2 | 2 2 2 2 2 Hottest 56 | 40 46 46 56 56 Shots Fired 550 | 36 118 44 261 91 Gun 544 | 36 118 44 256 90 Cannon 2 | . . . 2 . Launcher 4 | . . . 3 1 Special . | . . . . . Kinetic 546 | 36 118 44 258 90 Thermal . | . . . . . Explosive 4 | . . . 3 1 Electromagnetic . | . . . . . Robot Hit Streak 16 | 4 11 13 11 16 Robot Miss Streak 10 | 2 6 3 10 3 Penetration Max . | . . . . . Secondary Targets 4 | . 1 1 2 . Max Gunslinging Chain 1 | . 1 1 1 . Shots Hit Robots 340 | 22 69 29 155 65 Core Hits 134 | 6 25 10 68 25 Critical Kills 1 | . 1 . . . Critical Parts Destroyed 1 | . . . . 1 Critical Strikes 2 | . 1 . . 1 Destroy 2 | . 1 . . 1 Melee Attacks 9 | . . . . 9 Impact 9 | . . . . 9 Slashing . | . . . . . Piercing . | . . . . . Sneak Attacks 1 | . . . . 1 Combat Hostiles . | . . . . . Follow-up Attacks . | . . . . . Damage Inflicted 5733 | 283 1106 463 2804 1077 Guns 5345 | 283 1106 463 2464 1029 Cannons . | . . . . . Explosions 338 | . . . 338 . Melee 48 | . . . . 48 Ramming 2 | . . . 2 . Kinetic 5345 | 283 1106 463 2464 1029 Thermal . | . . . . . Explosive 338 | . . . 338 . Electromagnetic . | . . . . . Impact 48 | . . . . 48 Slashing . | . . . . . Piercing . | . . . . . Highest Corruption 2 | . 2 2 . 1 Average Corruption 1 | . 2 2 . 1 Corruption Purged . | . . . . . Corruption Blocked . | . . . . . Effects 21 | . 8 5 . 8 Message Errors 2 | . 1 . . 1 Matter Fused 6 | . 2 . . 4 Heat Flow Errors 4 | . 2 2 . . Energy Discharges 3 | . 2 . . 1 Data Loss (minor) 6 | . 1 3 . 2 Overload Shots . | . . . . . Overflow Damage 19 | . . . . 19 Projectiles . | . . . . . Explosions . | . . . . . Melee 19 | . . . . 19 Knockbacks . | . . . . . Impact . | . . . . . Kinetic . | . . . . . Secondary . | . . . . . Self-Inflicted Damage . | . . . . . Shots . | . . . . . Rammed 1 | . . . 1 . Targets Rammed 1 | . . . 1 . Kicked . | . . . . . Crushed . | . . . . . Highest Temperature 198 | . 138 198 55 44 Average Temperature 20 | . 12 58 11 11 Received Heat Transfer 927 | . 60 99 576 192 Siege Activations . | . . . . . Martial Activations . | . . . . . Shielding Activations . | . . . . . Robots Disrupted . | . . . . . Combat Hostiles . | . . . . . Robots Corrupted . | . . . . . Combat Hostiles . | . . . . . Parts Fried 1 | . . . . 1 Impact Corruptions 1 | . . . . 1 Robots Melted . | . . . . . Combat Hostiles . | . . . . . Parts Melted . | . . . . . Heat Transferred . | . . . . . Parts Sabotaged . | . . . . . Parts Stolen . | . . . . . Parts Stripped . | . . . . . Power Chain Reactions . | . . . . . Alert | -11 -10 -10 -9 -9 ------- Run | Yrd Mat Min Mat Sto Maximum Alert Level 2 | . . . 2 2 Low Security (%) 61 | 100 100 100 42 33 Level 1 27 | . . . 49 33 Level 2 10 | . . . 8 32 Level 3 . | . . . . . Level 4 . | . . . . . Level 5 . | . . . . . High Security . | . . . . . Max Security . | . . . . . Peak Influence 584 | 5 141 66 503 584 Initial 203 | . . 10 . 203 Average 160 | . 54 21 207 276 Influence Increases 2737 | 25 443 174 1094 1001 Destroy 0b10 Robot/C 1620 | . 280 120 700 520 Destroy 0b10 Robot/NC 180 | 25 30 10 75 40 Destroy Leader 450 | . 58 20 206 166 Allied During Kill 180 | . . 3 . 177 Successful Hack 43 | . 13 6 14 10 Disable Machine 135 | . 15 . 45 75 Destroy Structure 39 | . 2 . 24 13 Partial Spotted 15 | . 15 . . . Lose Combat Pursuer 75 | . 30 15 30 . Influence Decreases 2681 | 25 416 201 611 1428 Entered New Map 297 | . . 17 . 280 Time Decay 1626 | 25 416 174 541 470 Lost Part 80 | . . 10 70 . Lost Ally 100 | . . . . 100 Purge Threat 578 | . . . . 578 Squads Dispatched 13 | . 2 . 5 6 Investigation 5 | . 1 . 1 3 Extermination . | . . . . . Reinforcement 7 | . 1 . 4 2 Assault . | . . . . . Garrison 1 | . . . . 1 Intercept . | . . . . . Searches Triggered . | . . . . . Construction Impeded . | . . . . . Haulers Reinforced . | . . . . . Active Scanning Responses . | . . . . . Cargo Convoy Interrupts . | . . . . . Stealth | -11 -10 -10 -9 -9 --------- Run | Yrd Mat Min Mat Sto Distress Signals 8 | . 2 . 3 3 Communications Jammed . | . . . . . Distress Signals . | . . . . . Times Spotted 104 | . 21 7 55 21 Peak Tracking Total 5 | . 4 3 5 2 Tactical Retreats 4 | . 1 1 2 . Traps | -11 -10 -10 -9 -9 ------- Run | Yrd Mat Min Mat Sto Traps Triggered 6 | . 2 . 3 1 Indirectly . | . . . . . Trap Hack Attempts . | . . . . . Triggered . | . . . . . Disarmed . | . . . . . Reprogrammed . | . . . . . Reused . | . . . . . Traps Extracted . | . . . . . Installed . | . . . . . Triggered . | . . . . . Machines | -11 -10 -10 -9 -9 ---------- Run | Yrd Mat Min Mat Sto Machines Disabled 9 | . 1 . 3 5 Max in Single Turn 1 | . 1 . 1 1 Garrison Access 1 | . . . . 1 Machines Repaired . | . . . . . Machines Dismantled . | . . . . . Machines Sabotaged . | . . . . . Overloaded Fab Kills . | . . . . . Hacking | -11 -10 -10 -9 -9 --------- Run | Yrd Mat Min Mat Sto Machines Accessed 30 | . 6 1 13 10 Terminals 22 | . 6 1 8 7 Fabricators . | . . . . . Repair Stations 4 | . . . 2 2 Recycling Units 1 | . . . 1 . Scanalyzers 2 | . . . 2 . Garrison Access 1 | . . . . 1 Total Hacks 110 | . 22 3 55 30 Successful 69 | . 10 2 39 18 Failed 38 | . 11 1 15 11 Catastrophic 3 | . . . 1 2 Database Lockouts 3 | . 1 . 1 1 Manual 52 | . 12 2 27 11 Terminals 78 | . 22 3 30 23 Fabricators . | . . . . . Repair Stations 18 | . . . 14 4 Recycling Units 4 | . . . 4 . Scanalyzers 7 | . . . 7 . Garrison Access 3 | . . . . 3 Terminal Hacks 28 | . 6 2 8 12 Part Schematic 4 | . . 1 . 3 Robot Analysis 6 | . 2 . 3 1 Prototype ID Bank 3 | . 2 . . 1 Open Door 1 | . . . . 1 Branch Access Points 1 | . . . . 1 Unreport Threat 4 | . . . . 4 Locate Traps 2 | . 1 . . 1 Recall Reinforcements 1 | . . . 1 . Registered Components 2 | . 1 . 1 . Zone Layout 4 | . . 1 3 . Fabricator Hacks . | . . . . . Repair Station Hacks 18 | . . . 14 4 Scan Component 9 | . . . 7 2 Repair 9 | . . . 7 2 Recycling Unit Hacks 3 | . . . 3 . Process 1 | . . . 1 . Report Inventory 1 | . . . 1 . Retrieve Matter 1 | . . . 1 . Scanalyzer 7 | . . . 7 . Insert Component 3 | . . . 3 . Analyze 4 | . . . 4 . Garrison Access Hacks 1 | . . . . 1 Seal Access 1 | . . . . 1 Unauthorized Hacks 12 | . 4 . 7 1 Terminals 12 | . 4 . 7 1 Botnet 12 | . 4 . 7 1 Fabricators . | . . . . . Repair Stations . | . . . . . Recycling Units . | . . . . . Scanalyzers . | . . . . . Garrison Access . | . . . . . Data Cores Recovered 1 | . . . 1 . Used . | . . . . . Hacking Detections 29 | . 6 1 11 11 Full Trace Events 3 | . . . . 3 Feedback Events . | . . . . . Feedback Blocked . | . . . . . Robot Schematics Acquired . | . . . . . Robots Built . | . . . . . Authchips . | . . . . . Time . | . . . . . Total Robot Build Rating . | . . . . . Part Schematics Acquired 7 | . . 1 3 3 Parts Built . | . . . . . Authchips . | . . . . . Time . | . . . . . Total Part Build Rating . | . . . . . Parts Repaired 9 | . . . 7 2 Time 276 | . . . 212 64 Parts Recycled . | . . . . . Recycled Matter 576 | . . . 576 . Retrieved Matter 887 | . . . 887 . Retrieved Components . | . . . . . Parts Scanalyzed 3 | . . . 3 . Part Schematics Acquired 3 | . . . 3 . Parts Damaged . | . . . . . Bothacking | -11 -10 -10 -9 -9 ------------ Run | Yrd Mat Min Mat Sto Used RIF Installer . | . . . . . Robots Hacked . | . . . . . Non-combat . | . . . . . Combat . | . . . . . Robot Hacks Applied . | . . . . . Relay Couplers Released . | . . . . . Fabnet Peak Effective % . | . . . . . Robots Rewired . | . . . . . Allies Hacked . | . . . . . Hacks Repelled . | . . . . . Allies | -11 -10 -10 -9 -9 -------- Run | Yrd Mat Min Mat Sto Total Allies 11 | . . 1 . 10 Largest Group 10 | . . 1 . 10 Highest-Rated Group 88 | . . 31 . 88 Highest-Rated Ally 31 | . . 31 . 16 Total Orders . | . . . . . Ally Attacks 102 | . . 1 . 101 Total Damage 970 | . . 21 . 949 Kills 19 | . . . . 19 Allies Corrupted . | . . . . . Allies Melted . | . . . . . Intel | -11 -10 -10 -9 -9 ------- Run | Yrd Mat Min Mat Sto Active Infowar (turns) 1064 | . 122 . 942 . Terrain 1064 | . 122 . 942 . Robot Analysis Total 6 | . 2 . 3 1 Derelict Logs Recovered 1 | . . 1 . . Drone Launches . | . . . . . Drone Recoveries . | . . . . . Exploration | -11 -10 -10 -9 -9 ------------- Run | Yrd Mat Min Mat Sto Turns Passed 5885 | 271 1398 501 2457 1258 Spaces Moved 2849 | 148 757 266 1079 599 Core 31 | 31 . . . . Treads 2818 | 117 757 266 1079 599 Legs . | . . . . . Wheels . | . . . . . Hover . | . . . . . Flight . | . . . . . Fastest Speed 50 | 50 160 160 160 160 Average Speed 159 | 136 160 160 161 160 Slowest Speed 240 | 160 160 160 240 160 Overloaded Moves . | . . . . . Propulsion Burnouts . | . . . . . Robots Hopped . | . . . . . Potential Cave-ins . | . . . . . Cave-ins Triggered . | . . . . . Exploration Rate (%) 66 | 8 98 54 92 79 Regions Visited 4 Branch Regions 2 Pre-discovered Areas . | . . . . . Known Exits Taken . | . . . . . Unknown Exits Taken 4 | 1 1 1 1 . Scrap Searched 2 | . . 2 . . Spaces Dug . | . . . . . Terrain Destroyed 32 | . . . 22 10 Melee . | . . . . . Projectile . | . . . . . AOE 32 | . . . 22 10 Terrain Rammed . | . . . . . Walls Destroyed . | . . . . . Machines Disabled . | . . . . . Actions | -11 -10 -10 -9 -9 --------- Run | Yrd Mat Min Mat Sto Total 3712 | 179 850 306 1573 804 Wait 452 | . 19 14 304 115 Move 2845 | 147 756 265 1078 599 Hop . | . . . . . Pick Up 44 | 8 9 2 19 6 Fast Attach 11 | 2 . . 6 3 Attach 16 | 4 1 1 10 . Detach . | . . . . . Swap 29 | . 4 1 9 15 Drop 23 | . 2 1 10 10 Fire 282 | 18 59 22 136 47 Melee 9 | . . . . 9 Ram . | . . . . . Kick . | . . . . . Crush 1 | . . . 1 . Escape Stasis . | . . . . . Rewire . | . . . . . Trap . | . . . . . Miscellaneous . | . . . . . Route ------- -11/Scrapyard -10/Materials (discovered 5 exits: *Mat x3 / *Min x2) -10/Mines -9/Materials (discovered 6 exits: [*Mat x3] / [*Min] / *Sto x2) -9/Storage (discovered 2 exits: [*Mat] / *Rec) History --------- Turn | Location | Event 12 | -11/Scrapyard | Discovered new exit (range 16) 272 | -11/Scrapyard | Entered Materials 311 | -10/Materials | Build established: Mutant 496 | -10/Materials | Discovered new exit (range 10) 634 | -10/Materials | Discovered new exit (range 12) 768 | -10/Materials | Discovered new exit (range 9) 991 | -10/Materials | Central database locked down 1160 | -10/Materials | Discovered new exit (range 10) 1296 | -10/Materials | Discovered new exit (range 15) 1670 | -10/Materials | Entered Mines 1780 | -10/Mines | Learned Materials terminal intel 1873 | -10/Mines | Discovered new exit (range 7) 1876 | -10/Mines | Received a Mining Laser from a helpful Derelict 2044 | -10/Mines | Assembled infested the area 2049 | -10/Mines | Assisted by a Guerilla fighting off Assembled 2171 | -10/Mines | Entered Materials 2171 | -9/Materials | Evolved 2 slots: Utility x2 2172 | -9/Materials | Loaded intel: 12 terminal locations 2316 | -9/Materials | Repaired Lgt. Treads 2350 | -9/Materials | Repaired Autogun 2378 | -9/Materials | Repaired Lgt. Treads 2476 | -9/Materials | Central database locked down 2566 | -9/Materials | Discovered new exit (range 7) 2580 | -9/Materials | Build established: Hacker-Mutant 2717 | -9/Materials | Discovered new exit (range 10) 2717 | -9/Materials | Discovered new exit (range 13) 3093 | -9/Materials | Lost 3 parts (1n1u1w) 3235 | -9/Materials | Core integrity fell below 50% 3356 | -9/Materials | Discovered new exit (range 17) 3778 | -9/Materials | Repaired Imp. Treads 3811 | -9/Materials | Repaired Imp. Ion Engine 3845 | -9/Materials | Repaired Imp. Treads 3985 | -9/Materials | Repaired Med. Armor Plating 4409 | -9/Materials | Discovered new exit (range 15) 4514 | -9/Materials | Discovered new exit (range 15) 4562 | -9/Materials | Build established: Scavenger-Mutant 4628 | -9/Materials | Entered Storage 4757 | -9/Storage | Assisted by bots powering up and referring to "LRC-V3" 5030 | -9/Storage | Repaired Imp. Treads 5051 | -9/Storage | Build established: Commander-Mutant 5091 | -9/Storage | Identified exit to Recycling 5126 | -9/Storage | Garrison activated, responded to threat 5149 | -9/Storage | Core integrity fell below 20% 5309 | -9/Storage | Central database locked down 5350 | -9/Storage | Lost 6 allies 5371 | -9/Storage | Repaired Imp. Treads 5460 | -9/Storage | Discovered new exit (range 9) 5624 | -9/Storage | Build established: Hacker-Mutant 5630 | -9/Storage | Used back door to open Recycling access 5886 | -9/Storage | Destroyed by Y-45 Defender with Heavy Assault Rifle Last Messages --------------- Rating: 4 Schematic downloaded. >>Schematic(Recalibrator) Downloading schematic... Recalibrator Rating: 4 Schematic downloaded. 05866_ Connecting with Terminal... >>Prototypes Downloading prototype IDs... Imp. Assault Rifle Imp. EM Shotgun >>Schematic(Com. Battery) Downloading schematic... Com. Battery Rating: 3 Schematic downloaded. 05866_ ALERT: Suspicious activity at Terminal S005. Dispatching Investigation squad. 05872_ Acquired 40 matter. Map ----- +----------------------------------------------------+ | | | | | | | | | | | | | | | | | | | ?????????????????????????????????????????????? | | ?????????????????????????????????????????????? | | ?????????????????????????????????????????????? | | ?????????????????????????????????????????????? | | ???????????????###???????????????????????????? | | ??????????######T####????????????????????????? | | ??????????# #????????????????????????? | | ?????????## "#????????????????????????? | | ?????????# T#????????????????????????? | | ?????????## """ "#????????????????????????? | | ??????????# """ #????????????????????????? | | ??????????# """ ! #????????????????????????? | | ??????????# =]#????????????????????????? | | ??????????# [%= ]]#????????????????????????? | | ??????????#####+############+#####???????????? | | ?????????????# !* r ????????? | | ?????????????# @ %$ Y????????? | | ?????????????# ????????? | | ?????????????# ########+########??????????## | | ?????????????# #??????????????????????????#" | | ?????????????# #??????????????????????????#" | | ????########## #???????????????????????####" | | ????# # #???????????????????????# | | ????# """# #???????????????????????# " | | ??### """# ^#???????????????????????# " | | ??#"" """# ^##### ""??????????????# " | | ??#"T + ^ + ""??????????????# | | ??#"" """# ^##### ???????????# | | ??### """### #???????????????????????# | | ????# % """#?# ###############?????????# | | ????# #?# + ???????# =% | | ????## #######?## ######% """"?########## | | ?????###?#####??# #?? ## % "*["?# #??## | | ?????????#"""#??# #? # "= "?#^^^#???# | | ?????????#"Y"#??# # "" # "[]"?# #???#% | | ???????###" "#### % # "T # "[]"?# #???# | | ????#### # + "" # """ # #???# | | ????#""" """ # # # # #???# | | ????#"G """ #% %#######+##/##### #####% | | ????#""" """ # % % | | ????#### +% ##### | +----------------------------------------------------+ Best States ------------- Heat Dissipation 28 Energy Generation 14 Energy Capacity 280 Matter Stores 300 Matter Capacity 300 Sight Range 16 Terrain Scan Range 16 Terrain Scan Density 10 Armor Coverage 225 Evasion (%) 50 Recoil Reduction 2 Offensive Hacking 20 Item Schematics ----------------- Huge Storage Unit | -10/Mines | Hacked Imp. Terrain Scanner | -9/Materials | Scanalyzed Med. Armor Plating | -9/Materials | Scanalyzed Shield Generator | -9/Materials | Scanalyzed Imp. Carbon-fiber Leg | -9/Storage | Hacked Recalibrator | -9/Storage | Hacked Com. Battery | -9/Storage | Hacked Robot Schematics ------------------ None Fabricated ------------ Nothing Repaired ---------- Lgt. Treads | 23% | -9/Materials Autogun | 22% | -9/Materials Lgt. Treads | 47% | -9/Materials Imp. Treads | 52% | -9/Materials Imp. Ion Engine | 54% | -9/Materials Imp. Treads | 87% | -9/Materials Med. Armor Plating | 65% | -9/Materials Imp. Treads | 29% | -9/Storage Imp. Treads | 69% | -9/Storage Alien Tech Used ----------------- None Achievements -------------- None Challenges ------------ None Game ------ Seed DroneActiveSaw Manual? 0 Play Time 00:34:51 Cumulative 191.0 hours Start 2025.09.29 @ 22:37:11 End 2025.09.29 @ 23:11:41 Sessions 1 Manual Loads 0 Difficulty Rogue Special Mode None Game No. 304 Rogue 301 Adventurer 3 Explorer 0 Win Type - Total 1 Types 1/0/0/0/0/0/0/0/0/0 Lore% 64 Gallery% 60 Achievement% 47 Wizard Run 0 Options --------- Layout 0 ASCII 0 Keyboard 0 Movement Mouse Keybinds 0 Fullscreen 2 Font 18/SmallcapsGlow Map View 76x50 Zoom Use 0% Tactical HUD 1 Map Filters NONE Filters NONE Steam 1 RUN: 14b31443-bd6f-41b7-ab2b-185fb0d06fe3